fUST/lending_fUST_20250709
["ID","MTS","AMOUNT","RATE_DAILY","PERIOD"]
[370555061,1752064238528,-460.0,0.00019178,2]
[370555064,1752064238542,-1315.83,0.00019178,2]
[370555066,1752064238555,-460.0,0.00019178,2]
[370555068,1752064238564,-460.0,0.00019178,2]
[370555070,1752064238573,-694.37,0.00019178,2]
[370555071,1752064238582,-460.0,0.00019178,2]
[370555073,1752064238591,-460.0,0.00019178,2]
[370555076,1752064238600,-460.0,0.00019178,2]
[370555078,1752064238609,-460.0,0.00019178,2]
[370555079,1752064238617,-460.0,0.00019178,2]
[370555081,1752064238626,-932.63,0.00019178,2]
[370555084,1752064238636,-460.0,0.00019178,2]
[370555085,1752064238646,-460.0,0.00019178,2]
[370555087,1752064238655,-460.0,0.00019178,2]
[370555090,1752064238665,-460.0,0.00019178,2]
[370555092,1752064238675,-460.0,0.00019178,2]
[370555094,1752064238684,-460.0,0.00019178,2]
[370555096,1752064238693,-460.0,0.00019178,2]
[370555098,1752064238703,-460.0,0.00019178,2]
[370555099,1752064238712,-460.0,0.00019178,2]
[370555101,1752064238722,-460.0,0.00019178,2]
[370555104,1752064238731,-670.7,0.00019178,2]
[370555105,1752064238740,-460.0,0.00019178,2]
[370555107,1752064238750,-848.69,0.00019178,2]
[370555109,1752064238758,-460.0,0.00019178,2]
[370555111,1752064238767,-183.854579,0.00019178,2]
[370555114,1752064238779,-193.73100188,0.00019451,2]
[370555116,1752064238790,-500.0,0.00019451,2]
[370555118,1752064238799,-460.0,0.00019452,2]
[370555120,1752064238808,-460.0,0.00019452,2]
[370555121,1752064238818,-460.0,0.00019452,2]
[370555123,1752064238827,-240.34477763,0.00019452,2]
[370555126,1752064238836,-460.0,0.00019452,2]
[370555127,1752064238845,-632.82,0.00019452,2]
[370555130,1752064238855,-460.0,0.00019452,2]
[370555132,1752064238864,-460.0,0.00019452,2]
[370555134,1752064238873,-460.0,0.00019452,2]
[370555135,1752064238882,-460.0,0.00019452,2]
[370555137,1752064238891,-460.0,0.00019452,2]
[370555139,1752064238900,-2673.79,0.00019452,2]
[370555141,1752064238909,-727.34,0.00019452,2]
[370555143,1752064238919,-460.0,0.00019452,2]
[370555145,1752064238927,-956.82,0.00019452,2]
[370555147,1752064238936,-460.0,0.00019452,2]
[370555149,1752064238945,-460.0,0.00019452,2]
[370555151,1752064238954,-1961.41,0.00019452,2]
[370555153,1752064238962,-597.22,0.00019452,2]
[370555155,1752064238971,-460.0,0.00019452,2]
[370555157,1752064238981,-230.73062223,0.00019452,2]
[370555159,1752064238991,-460.0,0.00019452,2]
[370555161,1752064239002,-583.15,0.00019452,2]
[370555163,1752064239011,-518.62,0.00019452,2]
[370555165,1752064239023,-460.0,0.00019452,2]
[370555167,1752064239032,-1123.65,0.00019452,2]
[370555169,1752064239042,-460.0,0.00019452,2]
[370555171,1752064239053,-460.0,0.00019452,2]
[370555173,1752064239061,-460.0,0.00019452,2]
[370555175,1752064239070,-1199.23,0.00019452,2]
[370555177,1752064239079,-736.36,0.00019452,2]
[370555179,1752064239088,-460.0,0.00019452,2]
[370555181,1752064239098,-484.55,0.00019452,2]
[370555183,1752064239107,-460.0,0.00019452,2]
[370555185,1752064239115,-460.0,0.00019452,2]
[370555187,1752064239125,-2762.58,0.00019452,2]
[370555189,1752064239134,-460.0,0.00019452,2]
[370555191,1752064239143,-460.0,0.00019452,2]
[370555193,1752064239152,-510.07695423,0.00019452,2]
[370555195,1752064239161,-460.0,0.00019452,2]
[370555197,1752064239170,-460.0,0.00019452,2]
[370555199,1752064239179,-1315.83,0.00019452,2]
[370555201,1752064239189,-460.0,0.00019452,2]
[370555203,1752064239198,-460.0,0.00019452,2]
[370555205,1752064239208,-694.37,0.00019452,2]
[370555207,1752064239217,-460.0,0.00019452,2]
[370555209,1752064239226,-460.0,0.00019452,2]
[370555211,1752064239234,-460.0,0.00019452,2]
[370555213,1752064239243,-460.0,0.00019452,2]
[370555215,1752064239252,-460.0,0.00019452,2]
[370555217,1752064239261,-932.63,0.00019452,2]
[370555218,1752064239271,-460.0,0.00019452,2]
[370555220,1752064239280,-460.0,0.00019452,2]
[370555223,1752064239293,-460.0,0.00019452,2]
[370555225,1752064239302,-460.0,0.00019452,2]
[370555226,1752064239311,-460.0,0.00019452,2]
[370555229,1752064239321,-460.0,0.00019452,2]
[370555230,1752064239330,-460.0,0.00019452,2]
[370555233,1752064239340,-460.0,0.00019452,2]
[370555235,1752064239349,-460.0,0.00019452,2]
[370555236,1752064239358,-670.7,0.00019452,2]
[370555238,1752064239367,-848.69,0.00019452,2]
[370555240,1752064239376,-460.0,0.00019452,2]
[370555243,1752064239386,-500.0,0.00019725,2]
[370555244,1752064239395,-500.0,0.00019725,2]
[370555247,1752064239406,-460.0,0.00019726,2]
[370555249,1752064239415,-233.02915264,0.00019726,2]
[370555250,1752064239424,-460.0,0.00019726,2]
[370555252,1752064239434,-460.0,0.00019726,2]
[370555254,1752064239443,-632.82,0.00019726,2]
[370555256,1752064239453,-460.0,0.00019726,2]
[370555258,1752064239462,-460.0,0.00019726,2]
[370555260,1752064239471,-460.0,0.00019726,2]
[370555262,1752064239480,-460.0,0.00019726,2]
[370555265,1752064239489,-2673.79,0.00019726,2]
[370555268,1752064239498,-727.34,0.00019726,2]
[370555271,1752064239508,-460.0,0.00019726,2]
[370555274,1752064239517,-956.82,0.00019726,2]
[370555276,1752064239528,-460.0,0.00019726,2]
[370555278,1752064239537,-1961.41,0.00019726,2]
[370555280,1752064239546,-460.0,0.00019726,2]
[370555282,1752064239555,-518.62,0.00019726,2]
[370555283,1752064239564,-460.0,0.00019726,2]
[370555285,1752064239574,-1123.65,0.00019726,2]
[370555287,1752064239583,-460.0,0.00019726,2]
[370555290,1752064239592,-460.0,0.00019726,2]
[370555293,1752064239602,-460.0,0.00019726,2]
[370555295,1752064239612,-1199.23,0.00019726,2]
[370555297,1752064239620,-736.36,0.00019726,2]
[370555298,1752064239631,-484.55,0.00019726,2]
[370555300,1752064239639,-460.0,0.00019726,2]
[370555302,1752064239649,-460.0,0.00019726,2]
[370555304,1752064239658,-2762.58,0.00019726,2]
[370555306,1752064239668,-460.0,0.00019726,2]
[370555308,1752064239677,-460.0,0.00019726,2]
[370555310,1752064239686,-1315.83,0.00019726,2]
[370555312,1752064239696,-460.0,0.00019726,2]
[370555314,1752064239705,-460.0,0.00019726,2]
[370555316,1752064239714,-694.37,0.00019726,2]
[370555318,1752064239729,-460.0,0.00019726,2]
[370555320,1752064239738,-460.0,0.00019726,2]
[370555322,1752064239749,-460.0,0.00019726,2]
[370555324,1752064239758,-932.63,0.00019726,2]
[370555326,1752064239767,-460.0,0.00019726,2]
[370555328,1752064239776,-460.0,0.00019726,2]
[370555330,1752064239785,-460.0,0.00019726,2]
[370555332,1752064239794,-460.0,0.00019726,2]
[370555334,1752064239803,-670.7,0.00019726,2]
[370555336,1752064239812,-848.69,0.00019726,2]
[370555338,1752064239821,-460.0,0.00019726,2]
[370555340,1752064239829,-231.53,0.00019734,3]
[370555342,1752064239838,-694.61,0.00019734,3]
[370555344,1752064239847,-25000.0,0.00019744,2]
[370555346,1752064239857,-5271.91774509,0.00019744,2]
[370555348,1752064239866,-500.0,0.00019744,2]
[370555350,1752064239875,-690.642,0.00019744,2]
[370555352,1752064239886,-500.0,0.00019744,2]
[370555354,1752064239895,-500.0,0.00019744,2]
[370555356,1752064239904,-300.0,0.00019744,2]
[370555358,1752064239912,-300.0,0.00019744,2]
[370555360,1752064239926,-500.0,0.00019744,2]
[370555362,1752064239936,-3000.0,0.00019744,2]
[370555364,1752064239945,-300.0,0.00019744,2]
[370555366,1752064239954,-500.0,0.00019744,2]
[370555368,1752064239963,-3000.0,0.00019744,2]
[370555370,1752064239972,-300.0,0.00019744,2]
[370555372,1752064239982,-500.0,0.00019744,2]
[370555374,1752064239991,-3000.0,0.00019744,2]
[370555376,1752064240000,-300.0,0.00019744,2]
[370555378,1752064240009,-500.0,0.00019744,2]
[370555380,1752064240020,-3000.0,0.00019744,2]
[370555382,1752064240029,-300.0,0.00019744,2]
[370555384,1752064240039,-500.0,0.00019744,2]
[370555387,1752064240052,-3000.0,0.00019744,2]
[370555389,1752064240061,-300.0,0.00019744,2]
[370555391,1752064240070,-207.4,0.00019744,2]
[370555392,1752064240079,-500.0,0.00019744,2]
[370555394,1752064240089,-3000.0,0.00019744,2]
[370555397,1752064240104,-300.0,0.00019744,2]
[370555399,1752064240114,-300.0,0.00019744,2]
[370555400,1752064240124,-500.0,0.00019744,2]
[370555403,1752064240136,-3000.0,0.00019744,2]
[370555405,1752064240147,-320.64489862,0.00019744,2]
[370555407,1752064240158,-500.0,0.00019744,2]
[370555409,1752064240167,-3000.0,0.00019744,2]
[370555411,1752064240177,-300.0,0.00019744,2]
[370555413,1752064240186,-500.0,0.00019744,2]
[370555415,1752064240196,-300.0,0.00019744,2]
[370555417,1752064240205,-3000.0,0.00019744,2]
[370555419,1752064240214,-500.0,0.00019744,2]
[370555421,1752064240224,-300.0,0.00019744,2]
[370555423,1752064240234,-500.0,0.00019744,2]
[370555425,1752064240243,-3000.0,0.00019744,2]
[370555427,1752064240252,-3000.0,0.00019744,2]
[370555429,1752064240261,-3000.0,0.00019744,2]
[370555431,1752064240270,-300.0,0.00019744,2]
[370555433,1752064240279,-300.0,0.00019744,2]
[370555435,1752064240288,-3000.0,0.00019744,2]
[370555437,1752064240297,-300.0,0.00019744,2]
[370555440,1752064240306,-3000.0,0.00019744,2]
[370555442,1752064240315,-300.0,0.00019744,2]
[370555444,1752064240324,-300.0,0.00019744,2]
[370555446,1752064240333,-300.0,0.00019744,2]
[370555448,1752064240342,-300.0,0.00019744,2]
[370555449,1752064240350,-300.0,0.00019744,2]
[370555450,1752064240360,-195.35678219,0.00019744,2]
[370555451,1752064240369,-300.0,0.00019744,2]
[370555452,1752064240379,-300.0,0.00019744,2]
[370555453,1752064240388,-300.0,0.00019744,2]
[370555454,1752064240397,-300.0,0.00019744,2]
[370555455,1752064240407,-300.0,0.00019744,2]
[370555456,1752064240416,-300.0,0.00019744,2]
[370555457,1752064240426,-300.0,0.00019744,2]
[370555458,1752064240436,-300.0,0.00019744,2]
[370555459,1752064240445,-300.0,0.00019744,2]
[370555460,1752064240455,-300.0,0.00019744,2]
[370555461,1752064240464,-500.0,0.00019773,2]
[370555462,1752064240473,-500.0,0.00019773,2]
[370555463,1752064240482,-428.02488701,0.00019773,2]
[370555464,1752064240491,-500.0,0.00019773,2]
[370555465,1752064240500,-500.0,0.00019773,2]
[370555466,1752064240510,-500.0,0.00019773,2]
[370555467,1752064240519,-500.0,0.00019773,2]
[370555468,1752064240528,-500.0,0.00019773,2]
[370555469,1752064240537,-500.0,0.00019773,2]
[370555470,1752064240546,-500.0,0.00019773,2]
[370555471,1752064240678,-716.195754,0.00019799,2]
[370555472,1752064240688,-742.6949969,0.00019854,2]
[370555473,1752064240697,-5631.99112348,0.00019857,2]
[370555474,1752064240706,-528.45231494,0.00019857,2]
[370555475,1752064240714,-2111.69545052,0.00019857,2]
[370555476,1752064240724,-289.01925502,0.00019896,2]
[370555477,1752064240733,-1753.51711382,0.000199,2]
[370555478,1752064240743,-770.17471178,0.00019909,2]
[370555479,1752064240752,-798.67117612,0.00019964,2]
[370555480,1752064240761,-210.82220173,0.00019996,2]
[370555481,1752064240770,-750.8598106,0.00019996,2]
[370555482,1752064240779,-750.8598106,0.00019996,2]
[370555483,1752064240788,-750.8598106,0.00019996,2]
[370555484,1752064240798,-750.8598106,0.00019996,2]
[370555485,1752064240806,-750.8598106,0.00019996,2]
[370555486,1752064240815,-750.8598106,0.00019996,2]
[370555487,1752064240824,-750.8598106,0.00019996,2]
[370555488,1752064240833,-750.8598106,0.00019996,2]
[370555489,1752064240842,-750.8598106,0.00019996,2]
[370555490,1752064240851,-750.8598106,0.00019996,2]
[370555491,1752064240860,-750.8598106,0.00019996,2]
[370555492,1752064240870,-750.8598106,0.00019996,2]
[370555493,1752064240878,-750.8598106,0.00019996,2]
[370555494,1752064240888,-750.8598106,0.00019996,2]
[370555495,1752064240896,-750.8598106,0.00019996,2]
[370555496,1752064240906,-1841.70909977,0.00019996,2]
[370555497,1752064240914,-1841.70909977,0.00019996,2]
[370555498,1752064240924,-1841.70909977,0.00019996,2]
[370555499,1752064240932,-1841.70909977,0.00019996,2]
[370555500,1752064240941,-1841.70909977,0.00019996,2]
[370555501,1752064240950,-1841.70909977,0.00019996,2]
[370555502,1752064240959,-1841.70909977,0.00019996,2]
[370555503,1752064240968,-1841.70909977,0.00019996,2]
[370555504,1752064240977,-1841.70909977,0.00019996,2]
[370555505,1752064240985,-1841.70909977,0.00019996,2]
[370555506,1752064240994,-1841.70909977,0.00019996,2]
[370555507,1752064241007,-1841.70909977,0.00019996,2]
[370555508,1752064241016,-1826.82660201,0.00019996,2]
[370555509,1752064241025,-1826.82660201,0.00019996,2]
[370555510,1752064241034,-1826.82660201,0.00019996,2]
[370555511,1752064241043,-500.0,0.00019999,2]
[370555513,1752064241052,-460.0,0.0002,2]
[370555515,1752064241061,-460.0,0.0002,2]
[370555516,1752064241070,-460.0,0.0002,2]
[370555517,1752064241080,-632.82,0.0002,2]
[370555518,1752064241090,-460.0,0.0002,2]
[370555519,1752064241100,-460.0,0.0002,2]
[370555520,1752064241110,-460.0,0.0002,2]
[370555521,1752064241119,-2673.79,0.0002,2]
[370555523,1752064241128,-727.34,0.0002,2]
[370555525,1752064241138,-956.82,0.0002,2]
[370555527,1752064241148,-460.0,0.0002,2]
[370555529,1752064241157,-1961.41,0.0002,2]
[370555531,1752064241166,-460.0,0.0002,2]
[370555533,1752064241176,-518.62,0.0002,2]
[370555535,1752064241185,-460.0,0.0002,2]
[370555537,1752064241193,-1123.65,0.0002,2]
[370555539,1752064241204,-460.0,0.0002,2]
[370555540,1752064241213,-557.75,0.0002,2]
[370555543,1752064241223,-1199.23,0.0002,2]
[370555545,1752064241232,-736.36,0.0002,2]
[370555547,1752064241242,-484.55,0.0002,2]
[370555549,1752064241251,-454.7438215,0.0002,2]
[370555550,1752064241260,-150.41,0.0002,2]
[370555552,1752064241270,-2762.58,0.0002,2]
[370555554,1752064241279,-460.0,0.0002,2]
[370555557,1752064241288,-460.0,0.0002,2]
[370555558,1752064241297,-1315.83,0.0002,2]
[370555560,1752064241306,-460.0,0.0002,2]
[370555563,1752064241315,-694.37,0.0002,2]
[370555565,1752064241326,-460.0,0.0002,2]
[370555566,1752064241335,-460.0,0.0002,2]
[370555568,1752064241344,-460.0,0.0002,2]
[370555570,1752064241353,-932.63,0.0002,2]
[370555572,1752064241362,-460.0,0.0002,2]
[370555574,1752064241371,-460.0,0.0002,2]
[370555576,1752064241380,-460.0,0.0002,2]
[370555579,1752064241390,-670.7,0.0002,2]
[370555581,1752064241399,-848.69,0.0002,2]
[370555582,1752064241409,-604.3,0.0002,2]
[370555584,1752064241418,-10589.51703774,0.00020007,2]
[370555586,1752064241427,-500.0,0.00020056,2]
[370555588,1752064241436,-536.94146932,0.00020056,2]
[370555590,1752064241446,-500.0,0.00020056,2]
[370555592,1752064241454,-3000.0,0.00020068,2]
[370555594,1752064241463,-1753.5171136,0.00020107,2]
[370555596,1752064241473,-283.828121,0.00020146,2]
[370555598,1752064241482,-160.0,0.00020149,2]
[370555600,1752064241492,-12589.12013084,0.00020149,2]
[370555602,1752064241501,-230.53906051,0.00020149,2]
[370555604,1752064241511,-215.27775528,0.00020149,2]
[370555606,1752064241519,-837.99933892,0.00020149,2]
[370555608,1752064241528,-848.55005627,0.0002015,2]
[370555610,1752064241537,-160.0,0.0002015,2]
[370555612,1752064241546,-214.14293035,0.0002015,2]
[370555614,1752064241555,-160.0,0.0002015,2]
[370555616,1752064241564,-160.0,0.0002015,2]
[370555617,1752064241574,-160.0,0.0002015,2]
[370555618,1752064241583,-160.0,0.0002015,2]
[370555619,1752064241592,-185.4962,0.00020187,2]
[370555620,1752064241601,-500.0,0.0002022,2]
[370555621,1752064241610,-283.828121,0.00020242,2]
[370555622,1752064241619,-500.0,0.00020272,2]
[370555623,1752064241629,-460.0,0.00020273,2]
[370555624,1752064241641,-460.0,0.00020273,2]
[370555625,1752064241650,-460.0,0.00020273,2]
[370555626,1752064241659,-632.82,0.00020273,2]
[370555627,1752064241669,-460.0,0.00020273,2]
[370555628,1752064241678,-460.0,0.00020273,2]
[370555629,1752064241687,-460.0,0.00020273,2]
[370555630,1752064241697,-2673.79,0.00020273,2]
[370555631,1752064241706,-727.34,0.00020273,2]
[370555632,1752064241715,-956.82,0.00020273,2]
[370555634,1752064241725,-460.0,0.00020273,2]
[370555636,1752064241734,-1961.41,0.00020273,2]
[370555638,1752064241744,-460.0,0.00020273,2]
[370555640,1752064241753,-518.62,0.00020273,2]
[370555642,1752064241762,-460.0,0.00020273,2]
[370555644,1752064241772,-1123.65,0.00020273,2]
[370555646,1752064241781,-460.0,0.00020273,2]
[370555648,1752064241790,-1199.23,0.00020273,2]
[370555650,1752064241800,-736.36,0.00020273,2]
[370555652,1752064241809,-484.55,0.00020273,2]
[370555654,1752064241818,-2762.58,0.00020273,2]
[370555656,1752064241827,-270.73,0.00020273,2]
[370555658,1752064241836,-460.0,0.00020273,2]
[370555660,1752064241845,-1315.83,0.00020273,2]
[370555662,1752064241854,-460.0,0.00020273,2]
[370555664,1752064241863,-694.37,0.00020273,2]
[370555666,1752064241872,-460.0,0.00020273,2]
[370555668,1752064241882,-460.0,0.00020273,2]
[370555670,1752064241891,-460.0,0.00020273,2]
[370555672,1752064241900,-932.63,0.00020273,2]
[370555673,1752064241910,-460.0,0.00020273,2]
[370555675,1752064241919,-460.0,0.00020273,2]
[370555677,1752064241929,-460.0,0.00020273,2]
[370555679,1752064241938,-670.7,0.00020273,2]
[370555681,1752064241947,-848.69,0.00020273,2]
[370555683,1752064241957,-1753.5171136,0.00020314,3]
[370555685,1752064241966,-427.63946218,0.00020321,2]
[370555688,1752064241976,-1000.0,0.00020321,2]
[370555689,1752064241985,-500.0,0.00020321,2]
[370555691,1752064241994,-1000.0,0.00020321,2]
[370555693,1752064242004,-1000.0,0.00020321,2]
[370555695,1752064242017,-1124.88944406,0.00020321,2]
[370555697,1752064242026,-1000.0,0.00020321,2]
[370555699,1752064242036,-283.828121,0.00020339,2]
[370555701,1752064242045,-289.019255,0.00020397,2]
[370555703,1752064242055,-283.828121,0.00020435,2]
[370555705,1752064242065,-198.54547979,0.00020469,2]
[370555707,1752064242074,-393.02080889,0.00020492,2]
[370555709,1752064242083,-500.0,0.00020493,2]
[370555711,1752064242094,-500.0,0.00020493,2]
[370555713,1752064242104,-357.0,0.00020499,2]
[370555715,1752064242113,-1753.5171136,0.00020521,3]
[370555717,1752064242123,-283.828121,0.00020531,2]
[370555719,1752064242133,-460.0,0.00020547,2]
[370555721,1752064242142,-460.0,0.00020547,2]
[370555723,1752064242151,-460.0,0.00020547,2]
[370555725,1752064242160,-632.82,0.00020547,2]
[370555727,1752064242170,-460.0,0.00020547,2]
[370555729,1752064242179,-460.0,0.00020547,2]
[370555731,1752064242189,-460.0,0.00020547,2]
[370555733,1752064242198,-2673.79,0.00020547,2]
[370555735,1752064242207,-727.34,0.00020547,2]
[370555737,1752064242217,-956.82,0.00020547,2]
[370555739,1752064242227,-460.0,0.00020547,2]
[370555741,1752064242237,-1961.41,0.00020547,2]
[370555743,1752064242246,-460.0,0.00020547,2]
[370555745,1752064242256,-518.62,0.00020547,2]
[370555747,1752064242265,-460.0,0.00020547,2]
[370555749,1752064242274,-1123.65,0.00020547,2]
[370555751,1752064242283,-297.31,0.00020547,2]
[370555753,1752064242293,-1199.23,0.00020547,2]
[370555755,1752064242303,-736.36,0.00020547,2]
[370555757,1752064242312,-484.55,0.00020547,2]
[370555759,1752064242321,-2762.58,0.00020547,2]
[370555761,1752064242331,-460.0,0.00020547,2]
[370555763,1752064242340,-1315.83,0.00020547,2]
[370555765,1752064242349,-460.0,0.00020547,2]
[370555767,1752064242359,-694.37,0.00020547,2]
[370555769,1752064242369,-460.0,0.00020547,2]
[370555771,1752064242379,-460.0,0.00020547,2]
[370555773,1752064242390,-460.0,0.00020547,2]
[370555775,1752064242399,-932.63,0.00020547,2]
[370555777,1752064242408,-460.0,0.00020547,2]
[370555779,1752064242418,-460.0,0.00020547,2]
[370555781,1752064242428,-460.0,0.00020547,2]
[370555783,1752064242437,-670.7,0.00020547,2]
[370555786,1752064242446,-848.69,0.00020547,2]
[370555788,1752064242455,-1940.8,0.000206,2]
[370555790,1752064242464,-1000.0,0.00020604,2]
[370555792,1752064242473,-1000.0,0.00020604,2]
[370555794,1752064242482,-283.828121,0.00020628,2]
[370555796,1752064242492,-221.600541,0.00020672,4]
[370555799,1752064242501,-22946.66876487,0.0002071,2]
[370555801,1752064242510,-283.828121,0.00020724,2]
[370555803,1752064242519,-1753.5171136,0.00020728,3]
[370555805,1752064242528,-760.07289997,0.00020796,2]
[370555807,1752064242537,-283.828121,0.00020821,2]
[370555809,1752064242546,-460.0,0.00020821,2]
[370555811,1752064242555,-460.0,0.00020821,2]
[370555813,1752064242564,-460.0,0.00020821,2]
[370555815,1752064242573,-632.82,0.00020821,2]
[370555817,1752064242583,-460.0,0.00020821,2]
[370555819,1752064242592,-460.0,0.00020821,2]
[370555822,1752064242601,-460.0,0.00020821,2]
[370555824,1752064242610,-2673.79,0.00020821,2]
[370555826,1752064242619,-727.34,0.00020821,2]
[370555828,1752064242629,-956.82,0.00020821,2]
[370555830,1752064242638,-460.0,0.00020821,2]
[370555832,1752064242648,-1961.41,0.00020821,2]
[370555834,1752064242658,-460.0,0.00020821,2]
[370555836,1752064242667,-518.62,0.00020821,2]
[370555839,1752064242676,-460.0,0.00020821,2]
[370555841,1752064242685,-1123.65,0.00020821,2]
[370555843,1752064242693,-1199.23,0.00020821,2]
[370555845,1752064242703,-736.36,0.00020821,2]
[370555847,1752064242712,-484.55,0.00020821,2]
[370555849,1752064242721,-2762.58,0.00020821,2]
[370555851,1752064242730,-460.0,0.00020821,2]
[370555853,1752064242739,-1315.83,0.00020821,2]
[370555855,1752064242748,-460.0,0.00020821,2]
[370555857,1752064242757,-694.37,0.00020821,2]
[370555859,1752064242766,-460.0,0.00020821,2]
[370555861,1752064242775,-460.0,0.00020821,2]
[370555863,1752064242784,-460.0,0.00020821,2]
[370555865,1752064242793,-932.63,0.00020821,2]
[370555867,1752064242802,-460.0,0.00020821,2]
[370555869,1752064242811,-460.0,0.00020821,2]
[370555871,1752064242820,-460.0,0.00020821,2]
[370555873,1752064242829,-670.7,0.00020821,2]
[370555875,1752064242838,-848.69,0.00020821,2]
[370555877,1752064242846,-168.0,0.00020824,2]
[370555879,1752064242855,-554.236,0.00020844,2]
[370555881,1752064242864,-168.0,0.00020865,2]
[370555883,1752064242877,-1000.0,0.00020868,2]
[370555885,1752064242887,-1000.0,0.00020868,2]
[370555887,1752064242897,-332.83814541,0.00020868,2]
[370555889,1752064242906,-502.2500815,0.00020902,2]
[370555891,1752064242915,-2006.99132569,0.00020902,2]
[370555893,1752064242924,-283.828121,0.00020917,2]
[370555895,1752064242933,-1753.5171136,0.00020934,4]
[370555897,1752064242943,-283.828121,0.00021013,2]
[370555899,1752064242952,-257.70502127,0.00021041,2]
[370555901,1752064242961,-3000.0,0.0002105,2]
[370555903,1752064242970,-3000.0,0.0002106,2]
[370555904,1752064242979,-3000.0,0.0002107,2]
[370555907,1752064242989,-278358.8181341,0.00021079,4]
[370555909,1752064243007,-1313.64,0.00021079,4]
[370555928,1752064243706,-460.0,0.00019178,2]
[370555929,1752064243715,-300.0,0.00019744,2]
[370555930,1752064243724,-289.019255,0.00020898,2]
[370555931,1752064243734,-3459.17030972,0.00021079,4]
[370555932,1752064244374,-460.0,0.00019178,2]
[370555933,1752064244383,-460.0,0.00019178,2]
[370555934,1752064244393,-414.08516263,0.00019452,2]
[370555935,1752064244408,-45.91483737,0.00019452,2]
[370555936,1752064244417,-460.0,0.00019726,2]
[370555937,1752064244426,-151.0,0.00019744,2]
[370555938,1752064244434,-460.0,0.0002,2]
[370555939,1752064244443,-460.0,0.00020273,2]
[370555940,1752064244452,-4531.58897204,0.00021079,4]
[370565657,1752064350572,3000.0,0.0001678,2]
[370565694,1752064351079,396.34261925,0.00027397,120]
[370565826,1752064352408,2116.97273615,0.00017876,2]
[370565829,1752064352431,883.02726385,0.00017876,2]
[370567406,1752064827197,175.191787,0.00013699,2]
[370567407,1752064987872,1526.68669656,0.00025412,120]
[370567408,1752065007995,155.0,0.00027397,120]
[370567410,1752065037298,10000.0,0.00027397,120]
[370567411,1752065040671,10000.0,0.00027397,120]
[370567412,1752065042263,10000.0,0.00027397,120]
[370567413,1752065043821,10000.0,0.00027397,120]
[370567414,1752065045217,10000.0,0.00027397,120]
[370567415,1752065046664,10000.0,0.00027397,120]
[370567416,1752065048041,10000.0,0.00027397,120]
[370567417,1752065049461,10000.0,0.00027397,120]
[370567418,1752065050876,10000.0,0.00027397,120]
[370567419,1752065052229,10000.0,0.00027397,120]
[370567420,1752065053836,10000.0,0.00027397,120]
[370567421,1752065055310,10000.0,0.00027397,120]
[370567422,1752065056793,10000.0,0.00027397,120]
[370567423,1752065058220,10000.0,0.00027397,120]
[370567424,1752065059639,10000.0,0.00027397,120]
[370567425,1752065061058,10000.0,0.00027397,120]